bitfinex/quotes_BTCUSD_20210101
["timestamp","ask_amount","ask_price","bid_price","bid_amount"]
[1609483320913,0.362908,29179.0,29176.0,0.4185589]
[1609483321112,0.219,29178.0,29177.0,0.362867]
[1609483321319,0.10180625,29182.0,29175.0,0.5134]
[1609483321320,0.32020377,29176.0,29175.0,0.5134]
[1609483321510,0.58760183,29176.0,29175.0,0.54058945]
[1609483322409,0.58760183,29176.0,29175.0,0.81558945]
[1609483322607,0.58760183,29176.0,29175.0,0.81058945]
[1609483323228,0.58760183,29176.0,29175.0,1.66058945]
[1609483323628,0.58760183,29176.0,29175.0,0.81058945]
[1609483324227,0.58760183,29176.0,29175.0,1.46058945]
[1609483324430,0.58760183,29176.0,29175.0,1.82558945]
[1609483325535,0.58760183,29176.0,29175.0,1.17558945]
[1609483325732,0.58760183,29176.0,29175.0,0.81058945]
[1609483327033,0.58760183,29176.0,29175.0,1.41058945]
[1609483327034,0.04706669,29176.0,29175.0,1.41058945]
[1609483327338,0.04706669,29176.0,29175.0,0.77169879]
[1609483327339,0.034486,29176.0,29175.0,0.77169879]
[1609483328040,0.034486,29176.0,29175.0,5.65516691]
[1609483328241,0.034486,29176.0,29175.0,6.19516691]
[1609483328470,0.70496986,29183.0,29176.0,3.35]
[1609483328864,0.70496986,29183.0,29177.0,0.03346812]
[1609483329260,0.70496986,29183.0,29178.0,0.505]
[1609483329463,0.70496986,29183.0,29180.0,0.5133]
[1609483331346,0.70496986,29183.0,29181.0,0.175]
[1609483332579,0.70496986,29183.0,29182.0,0.77363341]
[1609483333477,0.70496986,29183.0,29182.0,0.02363341]
[1609483335977,0.70496986,29183.0,29182.0,1.77363341]
[1609483336279,0.70496986,29183.0,29182.0,2.13863341]
[1609483337075,0.70496986,29183.0,29182.0,2.78863341]
[1609483337276,0.70496986,29183.0,29182.0,2.13863341]
[1609483342051,0.70496986,29183.0,29182.0,0.38863341]
[1609483342257,0.70496986,29183.0,29182.0,0.02363341]
[1609483342555,0.70396492,29183.0,29182.0,1.22363341]
[1609483342757,0.70396492,29183.0,29182.0,0.02363341]
[1609483343354,0.70396492,29183.0,29182.0,0.02115156]
[1609483344926,1.06683492,29183.0,29182.0,0.02115156]
[1609483345730,2.06683492,29183.0,29182.0,0.02115156]
[1609483345937,1.06683492,29183.0,29182.0,0.02115156]
[1609483346128,1.44683492,29183.0,29182.0,0.02115156]
[1609483346433,2.26683492,29183.0,29182.0,0.02115156]
[1609483346633,1.26683492,29183.0,29182.0,0.02115156]
[1609483348131,1.06683492,29183.0,29182.0,0.02115156]
[1609483350262,1.06683492,29183.0,29182.0,1.02115156]
[1609483350463,1.06683492,29183.0,29182.0,1.01892236]
[1609483350765,1.26683492,29183.0,29182.0,1.01892236]
[1609483350963,1.06683492,29183.0,29182.0,1.01892236]
[1609483351863,1.26683492,29183.0,29182.0,1.01892236]
[1609483352664,1.06683492,29183.0,29182.0,1.01892236]
[1609483352867,1.06683492,29183.0,29182.0,1.01918431]
[1609483354370,1.06891698,29183.0,29182.0,1.01918431]
[1609483355985,1.07099995,29183.0,29182.0,1.01918431]
[1609483360775,1.22361995,29183.0,29182.0,1.01918431]
[1609483360973,1.22153806,29183.0,29182.0,1.01918431]
[1609483364812,1.22153806,29183.0,29182.0,1.24418431]
[1609483365314,1.06891806,29183.0,29182.0,1.24418431]
[1609483366213,0.70604806,29183.0,29182.0,1.24418431]
[1609483367614,1.06683492,29183.0,29182.0,1.24418431]
[1609483367831,1.06891829,29183.0,29182.0,1.24418431]
[1609483371433,1.07308659,29183.0,29182.0,1.24418431]
[1609483372034,0.71021659,29183.0,29182.0,1.24418431]
[1609483372532,0.70813322,29183.0,29182.0,1.24418431]
[1609483374057,0.71021785,29183.0,29182.0,1.24418431]
[1609483374457,0.70813322,29183.0,29182.0,1.24418431]
[1609483374716,0.67161422,29183.0,29182.0,1.84418431]
[1609483374913,0.67161422,29183.0,29182.0,1.24418431]
[1609483378208,1.03448422,29183.0,29182.0,1.24418431]
[1609483378813,0.67161422,29183.0,29182.0,1.24418431]
[1609483379631,0.67161422,29183.0,29182.0,1.24552649]
[1609483380732,0.67161422,29183.0,29182.0,1.34552649]
[1609483381632,0.67161422,29183.0,29182.0,1.24552649]
[1609483382531,0.67161422,29183.0,29182.0,1.34552649]
[1609483383441,0.67161422,29183.0,29182.0,1.24552649]
[1609483383737,1.21136422,29183.0,29182.0,1.24552649]
[1609483384534,1.21136422,29183.0,29182.0,1.02052649]
[1609483386258,1.21761968,29183.0,29182.0,1.02052649]
[1609483387059,1.36261968,29183.0,29182.0,1.02052649]
[1609483387461,1.35845138,29183.0,29182.0,1.02052649]
[1609483387766,0.67370138,29183.0,29182.0,1.12052649]
[1609483388366,0.67161635,29183.0,29182.0,1.02052649]
[1609483388561,0.67161635,29183.0,29182.0,1.17052649]
[1609483388763,0.67161635,29183.0,29182.0,1.27052649]
[1609483390046,0.67161635,29183.0,29182.0,1.57106649]
[1609483390244,0.66953112,29183.0,29182.0,1.73106649]
[1609483390442,0.66953112,29183.0,29182.0,3.73106649]
[1609483390844,0.66744592,29183.0,29182.0,3.73106649]
[1609483391444,0.66744592,29183.0,29182.0,1.73106649]
[1609483392273,0.66744592,29183.0,29182.0,2.78106649]
[1609483393372,0.66744592,29183.0,29182.0,1.73106649]
[1609483393976,0.66744592,29183.0,29182.0,1.73256649]
[1609483394278,0.66744592,29183.0,29182.0,2.73256649]
[1609483395174,0.66744592,29183.0,29182.0,1.73256649]
[1609483395376,0.66744592,29183.0,29182.0,1.53256649]
[1609483396578,0.66744592,29183.0,29182.0,1.43202649]
[1609483398298,0.62953692,29183.0,29182.0,1.43202649]
[1609483398597,0.61953692,29183.0,29182.0,1.43202649]
[1609483399398,0.61953692,29183.0,29182.0,1.42940123]
[1609483401495,0.61953692,29183.0,29182.0,1.62940123]
[1609483402200,0.61953692,29183.0,29182.0,2.37940123]
[1609483402499,0.61953692,29183.0,29182.0,2.46913123]
[1609483403199,0.61953692,29183.0,29182.0,1.71913123]
[1609483404878,0.61953692,29183.0,29182.0,1.69807123]
[1609483405077,0.61953692,29183.0,29182.0,1.89807123]
[1609483405283,0.61953692,29183.0,29182.0,3.36013344]
[1609483406278,0.61953692,29183.0,29182.0,4.85777542]
[1609483406880,0.61953692,29183.0,29182.0,3.35777542]
[1609483408221,0.61953692,29183.0,29182.0,3.95777542]
[1609483408619,0.61953692,29183.0,29182.0,3.39124354]
[1609483408823,0.61953692,29183.0,29182.0,3.35777542]
[1609483412523,0.61953692,29183.0,29182.0,1.90777542]
[1609483413063,0.61953692,29183.0,29182.0,3.40777542]
[1609483415569,0.61953692,29183.0,29182.0,1.90777542]
[1609483415770,0.61953692,29183.0,29182.0,1.72883542]
[1609483416168,0.61953692,29183.0,29182.0,3.27883542]
[1609483416988,0.61953692,29183.0,29182.0,4.12883542]
[1609483417289,0.61953692,29183.0,29182.0,3.27883542]
[1609483417888,0.61090064,29183.0,29182.0,4.9674024]
[1609483418189,0.61090064,29183.0,29182.0,3.4674024]
[1609483418993,0.61090064,29183.0,29182.0,4.4674024]
[1609483421211,0.61090064,29183.0,29182.0,2.9174024]
[1609483422004,0.61090064,29183.0,29182.0,4.4174024]
[1609483423062,0.61090064,29183.0,29182.0,2.9174024]
[1609483424060,0.61090064,29183.0,29182.0,3.5174024]
[1609483425060,0.61090064,29183.0,29182.0,2.9174024]
[1609483426895,0.61090064,29183.0,29182.0,4.0674024]
[1609483428499,0.61090064,29183.0,29182.0,2.9174024]
[1609483428998,0.61090064,29183.0,29182.0,3.9174024]
[1609483429603,0.61090064,29183.0,29182.0,2.9174024]
[1609483430604,0.61090064,29183.0,29182.0,4.4174024]
[1609483431003,0.61090064,29183.0,29182.0,5.3174024]
[1609483431744,0.61090064,29183.0,29182.0,5.35087052]
[1609483432449,0.61090064,29183.0,29182.0,4.4174024]
[1609483432842,0.61090064,29183.0,29182.0,5.0674024]
[1609483433845,0.61090064,29183.0,29182.0,5.9216024]
[1609483434247,0.61090064,29183.0,29182.0,5.96331083]
[1609483435150,0.61090064,29183.0,29182.0,5.9216024]
[1609483435347,0.61090064,29183.0,29182.0,5.0716024]
[1609483437248,0.0004,29184.0,29183.0,6.01495482]
[1609483437484,0.0004,29184.0,29183.0,6.87216748]
[1609483437681,0.0004,29184.0,29183.0,7.04842294]
[1609483437880,0.0004,29184.0,29183.0,7.68202294]
[1609483438081,0.0004,29184.0,29183.0,6.68202294]
[1609483438280,0.0004,29184.0,29183.0,5.58202294]
[1609483438682,0.0004,29184.0,29183.0,6.03225187]
[1609483439083,0.0004,29184.0,29183.0,7.03225187]
[1609483439281,0.0004,29184.0,29183.0,7.38973517]
[1609483439484,0.0004,29184.0,29183.0,7.03225187]
[1609483439883,0.0004,29184.0,29183.0,7.38973517]
[1609483440486,0.0004,29184.0,29183.0,6.93973517]
[1609483440689,0.0004,29184.0,29183.0,3.02252829]
[1609483441087,0.0004,29184.0,29183.0,2.02252829]
[1609483441992,0.0004,29184.0,29183.0,3.85549375]
[1609483442188,0.0004,29184.0,29183.0,4.03940187]
[1609483443908,0.0004,29184.0,29183.0,3.86314641]
[1609483444108,0.0004,29184.0,29183.0,5.36314641]
[1609483444309,0.0008,29186.0,29184.0,4.88373876]
[1609483444515,0.0006,29187.0,29185.0,3.6]
[1609483444715,0.0006,29199.0,29188.0,1.1]
[1609483444913,0.0008,29193.0,29188.0,2.77625546]
[1609483445110,0.0008,29193.0,29189.0,0.915]
[1609483445415,0.0008,29193.0,29190.0,3.35]
[1609483445616,0.0008,29193.0,29190.0,3.38346812]
[1609483445812,0.0008,29193.0,29191.0,3.35]
[1609483446205,0.0008,29193.0,29191.0,3.38346812]
[1609483446808,0.0008,29192.0,29191.0,3.38346812]
[1609483447505,0.0008,29192.0,29191.0,4.38346812]
[1609483453318,0.0006,29192.0,29191.0,4.38346812]
[1609483454919,0.0008,29193.0,29191.0,4.38346812]
[1609483455126,0.08398577,29207.0,29192.0,5.3924833]
[1609483455322,0.44485075,29207.0,29194.0,0.17625546]
[1609483455626,0.08398577,29207.0,29195.0,0.35211551]
[1609483455824,0.0006,29202.0,29197.0,0.6389]
[1609483456121,0.0006,29202.0,29197.0,1.6389]
[1609483456325,1.0006,29199.0,29197.0,1.68134]
[1609483456524,1.0,29198.0,29197.0,1.04244]
[1609483457022,0.99,29198.0,29197.0,1.04244]
[1609483457218,0.99,29198.0,29197.0,1.22]
[1609483458154,0.9906,29199.0,29197.0,1.22]
[1609483458855,0.78905972,29198.0,29197.0,1.21337148]
[1609483461055,0.78905972,29198.0,29197.0,1.2136003]
[1609483461358,0.78725972,29198.0,29197.0,6.1951803]
[1609483461554,0.77445972,29198.0,29197.0,7.1101803]
[1609483461790,0.34677872,29198.0,29197.0,7.1101803]
[1609483461965,0.16286197,29198.0,29197.0,8.14364842]
[1609483462261,0.00097068,29199.0,29198.0,3.55329]
[1609483462463,0.0006,29199.0,29198.0,4.59714943]
[1609483462754,0.0006,29199.0,29198.0,4.63061755]
[1609483462961,0.0006,29199.0,29198.0,5.30051755]
[1609483463892,0.0006,29199.0,29198.0,4.71199047]
[1609483464593,0.0006,29199.0,29198.0,5.71199047]
[1609483465048,0.0006,29199.0,29198.0,2.95051755]
[1609483465354,0.0006,29199.0,29198.0,2.71375943]
[1609483466049,0.9906,29199.0,29198.0,2.70713091]
[1609483466251,0.9906,29199.0,29198.0,1.03723091]
[1609483466454,1.1906,29199.0,29198.0,0.04385943]
[1609483466854,1.44113,29199.0,29198.0,0.04385943]
[1609483467486,2.34113,29199.0,29198.0,0.04385943]
[1609483467679,2.56095,29199.0,29198.0,0.04385943]
[1609483468082,1.71595,29199.0,29198.0,0.04385943]
[1609483468481,0.81595,29199.0,29198.0,0.04385943]
[1609483468683,0.14121,29199.0,29198.0,0.04385943]
[1609483468880,0.0006,29199.0,29198.0,0.04385943]
[1609483469681,0.0004,29199.0,29198.0,0.04085943]
[1609483469888,0.0004,29199.0,29198.0,0.19525943]
[1609483470481,0.0004,29199.0,29198.0,0.04025943]
[1609483472490,0.7504,29199.0,29198.0,0.04025943]
[1609483473532,1.3508,29199.0,29198.0,0.04025943]
[1609483474210,1.0008,29199.0,29198.0,0.04025943]
[1609483474408,1.96367,29199.0,29198.0,0.04025943]
[1609483474610,2.12973,29199.0,29198.0,0.04025943]
[1609483475209,1.52973,29199.0,29198.0,0.04025943]
[1609483475411,1.68473,29199.0,29198.0,0.04025943]
[1609483476211,2.34840603,29199.0,29198.0,0.04025943]
[1609483477116,3.33840603,29199.0,29198.0,0.04025943]
[1609483478734,2.34840603,29199.0,29198.0,0.04025943]
[1609483479338,3.34840603,29199.0,29198.0,0.04025943]
[1609483480096,4.33840603,29199.0,29198.0,0.04025943]
[1609483482391,3.34840603,29199.0,29198.0,0.04025943]
[1609483482632,4.33840603,29199.0,29198.0,0.04025943]
[1609483483237,3.59840603,29199.0,29198.0,0.04025943]
[1609483483434,2.84840603,29199.0,29198.0,0.04025943]
[1609483484139,3.04840603,29199.0,29198.0,0.04025943]
[1609483484338,2.69340603,29199.0,29198.0,0.04025943]
[1609483484534,2.89340603,29199.0,29198.0,0.04025943]
[1609483485039,2.69340603,29199.0,29198.0,0.04025943]
[1609483486037,2.44340603,29199.0,29198.0,0.04025943]
[1609483487136,2.74340603,29199.0,29198.0,0.04025943]
[1609483487336,3.34340603,29199.0,29198.0,0.04025943]
[1609483487838,3.74840603,29199.0,29198.0,0.04025943]
[1609483488035,4.73840603,29199.0,29198.0,0.04025943]
[1609483488459,3.73840603,29199.0,29198.0,0.04025943]
[1609483488955,2.74840603,29199.0,29198.0,0.04025943]
[1609483489157,3.54840603,29199.0,29198.0,0.04025943]
[1609483489356,4.53840603,29199.0,29198.0,0.04025943]
[1609483489557,3.93840603,29199.0,29198.0,0.04025943]
[1609483490359,2.94840603,29199.0,29198.0,0.04025943]
[1609483491259,3.93840603,29199.0,29198.0,0.04025943]
[1609483491665,3.98753603,29199.0,29198.0,0.04025943]
[1609483492062,4.98753603,29199.0,29198.0,0.04025943]
[1609483493263,3.99753603,29199.0,29198.0,0.04025943]
[1609483493464,4.98753603,29199.0,29198.0,0.04025943]
[1609483493665,3.99962028,29199.0,29198.0,0.04025943]
[1609483494182,2.95049028,29199.0,29198.0,0.04025943]
[1609483495119,3.75049028,29199.0,29198.0,0.04025943]
[1609483495520,3.20049028,29199.0,29198.0,0.04025943]
[1609483496017,2.83762028,29199.0,29198.0,0.04025943]
[1609483496219,2.38262028,29199.0,29198.0,0.04025943]
[1609483498456,1.38262028,29199.0,29198.0,0.04025943]
[1609483498655,1.21656028,29199.0,29198.0,0.04025943]
[1609483499058,1.61656028,29199.0,29198.0,0.04025943]
[1609483500464,1.6207302,29199.0,29198.0,0.04025943]
[1609483501060,1.61656028,29199.0,29198.0,0.04025943]
[1609483501463,2.07943028,29199.0,29198.0,0.04025943]
[1609483501666,2.31943028,29199.0,29198.0,0.04025943]
[1609483502459,2.27943028,29199.0,29198.0,0.04025943]
[1609483502760,1.97943028,29199.0,29198.0,0.04025943]
[1609483504184,1.98360053,29199.0,29198.0,0.04025943]
[1609483504385,1.58360053,29199.0,29198.0,0.04025943]
[1609483504584,1.58360053,29199.0,29198.0,0.14025943]
[1609483505084,1.22073053,29199.0,29198.0,0.14025943]
[1609483505281,1.21864628,29199.0,29198.0,0.14025943]
[1609483505481,1.21656133,29199.0,29198.0,0.14025943]
[1609483506288,0.96656133,29199.0,29198.0,0.14025943]
[1609483506490,0.66656133,29199.0,29198.0,0.14025943]
[1609483506790,0.66656133,29199.0,29198.0,0.52525943]
[1609483506791,0.67073204,29199.0,29198.0,0.52525943]
[1609483506993,0.66447603,29199.0,29198.0,3.30872755]
[1609483507186,0.66447603,29199.0,29198.0,3.27525943]
[1609483507388,0.66447603,29199.0,29198.0,2.02525943]
[1609483507787,0.66447603,29199.0,29198.0,3.02525943]
[1609483508386,0.66447603,29199.0,29198.0,1.52525943]
[1609483510156,0.66447603,29199.0,29198.0,2.32525943]
[1609483510558,0.66447603,29199.0,29198.0,1.52525943]
[1609483511858,0.65447603,29199.0,29198.0,2.22525943]
[1609483512060,0.65447603,29199.0,29198.0,1.92525943]
[1609483512714,0.64947603,29199.0,29198.0,1.52525943]
[1609483513913,0.64947603,29199.0,29198.0,1.52611543]
[1609483514112,0.64947603,29199.0,29198.0,3.02611543]
[1609483517050,0.64947603,29199.0,29198.0,3.02745685]
[1609483518849,0.64947603,29199.0,29198.0,3.62745685]
[1609483519250,0.64947603,29199.0,29198.0,3.02745685]
[1609483519449,0.64947603,29199.0,29198.0,3.22745685]
[1609483519649,0.64947603,29199.0,29198.0,3.62745685]
[1609483520153,0.64947603,29199.0,29198.0,3.02745685]
[1609483524205,0.64947603,29199.0,29198.0,2.66502255]
[1609483526788,0.64947603,29199.0,29198.0,1.16502255]
[1609483527791,0.64947603,29199.0,29198.0,1.81502255]
[1609483528391,0.64947603,29199.0,29198.0,1.16502255]
[1609483529809,0.64947603,29199.0,29198.0,2.81474255]
[1609483537538,0.64947603,29199.0,29198.0,1.31474255]
[1609483538741,0.64947603,29199.0,29198.0,1.16502255]
[1609483539540,0.64947603,29199.0,29198.0,1.16242319]
[1609483540714,0.64447603,29199.0,29198.0,1.81242319]
[1609483541116,0.62736644,29199.0,29198.0,2.41242319]
[1609483541316,0.62736644,29199.0,29198.0,1.81242319]
[1609483541715,1.12736644,29199.0,29198.0,1.16242319]
[1609483546599,1.12736644,29199.0,29198.0,1.16008843]
[1609483553429,1.12736644,29199.0,29198.0,1.15651388]
[1609483555155,1.12736644,29199.0,29198.0,1.18926029]
[1609483556852,1.12736644,29199.0,29198.0,2.68926029]
[1609483557054,1.12736644,29199.0,29198.0,2.90629029]
[1609483560393,1.12736644,29199.0,29198.0,2.90271574]
[1609483565544,1.12736644,29199.0,29198.0,2.94443183]
[1609483566143,1.12736644,29199.0,29198.0,2.9552503]
[1609483566548,1.12736644,29199.0,29198.0,2.91353421]
[1609483568270,1.12236644,29199.0,29198.0,2.91353421]
[1609483568668,1.12236644,29199.0,29198.0,2.95525023]
[1609483568869,1.12236644,29199.0,29198.0,2.91353421]
[1609483569170,1.12236644,29199.0,29198.0,2.69650421]
[1609483569774,2.11236644,29199.0,29198.0,1.19650421]
[1609483569974,2.27397644,29199.0,29198.0,1.0457623]
[1609483570213,4.48684644,29199.0,29198.0,0.0457623]
[1609483570716,4.28684644,29199.0,29198.0,0.0457623]
[1609483571605,4.74893116,29199.0,29198.0,0.0457623]
[1609483571804,4.94893116,29199.0,29198.0,0.0457623]
[1609483572015,5.74684644,29199.0,29198.0,0.0457623]
[1609483572210,4.55684644,29199.0,29198.0,0.0457623]
[1609483572406,4.19397644,29199.0,29198.0,0.0457623]
[1609483572610,5.54684644,29199.0,29198.0,0.0457623]
[1609483573246,4.44684644,29199.0,29198.0,0.0457623]
[1609483573645,4.64684644,29199.0,29198.0,0.0457623]
[1609483574045,4.44684644,29199.0,29198.0,0.0457623]
[1609483574345,3.45684644,29199.0,29198.0,0.0457623]
[1609483574746,4.44684644,29199.0,29198.0,0.0457623]
[1609483575050,4.64184644,29199.0,29198.0,0.0457623]
[1609483575943,4.44184644,29199.0,29198.0,0.0457623]
[1609483576647,3.34684644,29199.0,29198.0,0.0457623]
[1609483576845,3.34684644,29199.0,29198.0,0.5587623]
[1609483577249,2.88684644,29199.0,29198.0,0.5587623]
[1609483577449,2.52397644,29199.0,29198.0,0.5587623]
[1609483577854,3.88684644,29199.0,29198.0,0.0457623]
[1609483578051,4.40684644,29199.0,29198.0,0.0457623]
[1609483578465,5.40684644,29199.0,29198.0,0.0457623]
[1609483581667,5.50746644,29199.0,29198.0,0.0457623]
[1609483581869,5.30746644,29199.0,29198.0,0.0457623]
[1609483582067,5.50746644,29199.0,29198.0,0.0457623]
[1609483588490,5.20684644,29199.0,29198.0,0.0457623]
[1609483588694,5.10684644,29199.0,29198.0,0.0457623]
[1609483590597,5.30684644,29199.0,29198.0,0.0457623]
[1609483590994,5.36639644,29199.0,29198.0,0.0457623]
[1609483591393,5.56639644,29199.0,29198.0,0.0457623]
[1609483591623,5.36639644,29199.0,29198.0,0.0457623]
[1609483592225,5.16639644,29199.0,29198.0,0.0457623]
[1609483592423,5.36639644,29199.0,29198.0,0.0457623]
[1609483593125,4.37639644,29199.0,29198.0,0.0457623]
[1609483593526,5.36639644,29199.0,29198.0,0.0457623]
[1609483594927,5.36139644,29199.0,29198.0,0.0457623]
[1609483599476,5.36348129,29199.0,29198.0,0.0457623]
[1609483599979,5.56348129,29199.0,29198.0,0.0457623]
[1609483600770,5.56556704,29199.0,29198.0,0.0457623]
[1609483601168,5.36556704,29199.0,29198.0,0.0457623]
[1609483601672,5.36139644,29199.0,29198.0,0.0457623]
[1609483602172,5.36765156,29199.0,29198.0,0.0457623]
[1609483603374,5.36765156,29199.0,29198.0,0.04442088]
[1609483604071,4.37765156,29199.0,29198.0,0.04442088]
[1609483606191,5.36765156,29199.0,29198.0,0.04442088]
[1609483606391,5.36765156,29199.0,29198.0,0.04576229]
[1609483606695,5.16765156,29199.0,29198.0,0.04576229]
[1609483606893,5.36765156,29199.0,29198.0,0.04576229]
[1609483607093,4.17765156,29199.0,29198.0,0.04576229]
[1609483608595,4.37765156,29199.0,29198.0,0.04576229]
[1609483609294,4.3818196,29199.0,29198.0,0.04576229]
[1609483609494,4.1818196,29199.0,29198.0,0.04576229]
[1609483609693,4.17765156,29199.0,29198.0,0.04576229]
[1609483610312,4.12226926,29199.0,29198.0,0.04576229]
[1609483610812,4.11601414,29199.0,29198.0,0.04576229]
[1609483612212,4.21601414,29199.0,29198.0,0.04576229]
[1609483613315,4.11601414,29199.0,29198.0,0.04576229]
[1609483613916,5.32391414,29199.0,29198.0,0.04576229]
[1609483614217,5.61044414,29199.0,29198.0,0.04576229]
[1609483614820,5.61252759,29199.0,29198.0,0.04576229]
[1609483615017,5.57252759,29199.0,29198.0,0.04576229]
[1609483615305,5.45462759,29199.0,29198.0,0.04576229]
[1609483618049,5.57004759,29199.0,29198.0,0.04576229]
[1609483618352,5.61004759,29199.0,29198.0,0.04576229]
[1609483620648,5.49462759,29199.0,29198.0,0.04576229]
[1609483621954,4.50462759,29199.0,29198.0,0.04576229]
[1609483623355,5.49462759,29199.0,29198.0,0.04576229]
[1609483623579,4.50462759,29199.0,29198.0,0.04576229]
[1609483624583,4.30462759,29199.0,29198.0,0.04576229]
[1609483624786,4.11809759,29199.0,29198.0,0.04576229]
[1609483626483,4.11601486,29199.0,29198.0,0.04576229]
[1609483627284,4.11809921,29199.0,29198.0,0.04576229]
[1609483628488,4.11184644,29199.0,29198.0,0.04576229]
[1609483630633,4.31184644,29199.0,29198.0,0.04576229]
[1609483631331,4.11184644,29199.0,29198.0,0.04576229]
[1609483631735,4.31184644,29199.0,29198.0,0.04576229]
[1609483631934,4.35326644,29199.0,29198.0,0.04576229]
[1609483633069,4.31184644,29199.0,29198.0,0.04576229]
[1609483636474,4.11184644,29199.0,29198.0,0.04576229]
[1609483638178,4.11184644,29199.0,29198.0,0.03978089]
[1609483638595,4.21184644,29199.0,29198.0,0.03978089]
[1609483638995,4.41184644,29199.0,29198.0,0.03978089]
[1609483640393,4.21184644,29199.0,29198.0,0.03978089]
[1609483640901,5.39684644,29199.0,29198.0,0.03978089]
[1609483641097,5.65344644,29199.0,29198.0,0.03978089]
[1609483641797,5.70892257,29199.0,29198.0,0.03978089]
[1609483641995,4.71892257,29199.0,29198.0,0.03978089]
[1609483642697,5.70892257,29199.0,29198.0,0.03978089]
[1609483642896,4.71892257,29199.0,29198.0,0.03978089]
[1609483644445,4.71892257,29199.0,29198.0,0.03679616]
[1609483644746,5.90892257,29199.0,29198.0,0.03679616]
[1609483644952,5.65344644,29199.0,29198.0,0.03679616]
[1609483646875,4.66344644,29199.0,29198.0,0.03679616]
[1609483647084,4.86344644,29199.0,29198.0,0.03679616]
[1609483647930,5.85344644,29199.0,29198.0,0.03679616]
[1609483648131,4.86344644,29199.0,29198.0,0.03679616]
[1609483648330,5.85344644,29199.0,29198.0,0.03679616]
[1609483648530,5.65344644,29199.0,29198.0,0.03679616]
[1609483648834,5.85344644,29199.0,29198.0,0.03679616]
[1609483649732,5.70894175,29199.0,29198.0,0.03679616]
[1609483650036,5.45234175,29199.0,29198.0,0.03679616]
[1609483650430,4.45234175,29199.0,29198.0,0.03679616]
[1609483651533,0.96588473,29198.0,29197.0,1.0]
[1609483651799,6.09695473,29198.0,29197.0,1.0]
[1609483652604,3.31287,29197.0,29193.0,0.71297664]
[1609483652801,0.46287,29196.0,29195.0,1.0]
[1609483653001,1.13787,29196.0,29195.0,1.0]
[1609483653302,1.17787,29196.0,29193.0,0.71297664]
[1609483653537,0.87815663,29195.0,29193.0,0.71297664]
[1609483653701,3.675,29194.0,29193.0,0.71297664]
[1609483653903,4.23787,29194.0,29193.0,0.74023137]
[1609483656116,4.49457001,29194.0,29193.0,0.74023137]
[1609483656518,4.53457001,29194.0,29193.0,0.74023137]
[1609483656721,4.33457001,29194.0,29193.0,0.74023137]
[1609483657022,4.53457001,29194.0,29193.0,0.74023137]
[1609483657422,5.43665657,29194.0,29193.0,0.74023137]
[1609483657823,5.63665657,29194.0,29193.0,0.74023137]
[1609483658121,4.73665657,29194.0,29193.0,0.74023137]
[1609483658324,4.53665657,29194.0,29193.0,0.74023137]
[1609483658722,4.49665657,29194.0,29193.0,0.74023137]
[1609483658924,4.73665657,29194.0,29193.0,0.74023137]
[1609483659130,4.47995656,29194.0,29193.0,0.74023137]
[1609483659326,6.41995656,29194.0,29193.0,0.74023137]
[1609483659535,6.75175958,29194.0,29193.0,0.74023137]
[1609483659736,6.41787,29194.0,29193.0,0.74023137]
[1609483659925,6.41787,29194.0,29193.0,0.02725473]
[1609483660131,6.41787,29194.0,29193.0,4.73e-06]
[1609483660432,6.36332711,29194.0,29193.0,4.73e-06]
[1609483661134,6.74498441,29194.0,29193.0,4.73e-06]
[1609483661427,7.22668441,29194.0,29193.0,4.73e-06]
[1609483661829,7.17057302,29194.0,29193.0,4.73e-06]
[1609483662029,7.17682498,29194.0,29193.0,4.73e-06]
[1609483662629,0.99,29193.0,29183.0,0.26477363]
[1609483662967,2.26287,29184.0,29183.0,0.26477363]
[1609483663262,2.76974001,29184.0,29183.0,0.26477363]
[1609483663460,3.21474001,29184.0,29183.0,0.26477363]
[1609483664059,3.76824002,29184.0,29183.0,0.25872063]
[1609483664661,4.76824002,29184.0,29183.0,0.25872063]
[1609483664862,4.51154001,29184.0,29183.0,0.25872063]
[1609483666164,4.51154001,29184.0,29183.0,0.24872063]
[1609483667867,2.31154001,29184.0,29183.0,0.24872063]
[1609483668068,2.52834002,29184.0,29183.0,0.24872063]
[1609483668266,2.42834002,29184.0,29183.0,0.24872063]
[1609483668684,2.27817002,29184.0,29183.0,0.24872063]
[1609483670786,1.76467001,29184.0,29183.0,0.24872063]
[1609483676274,1.50787,29184.0,29183.0,0.24872063]
[1609483676472,1.06287,29184.0,29183.0,0.24872063]
[1609483676973,1.00955005,29184.0,29183.0,0.24872063]
[1609483677374,0.94855391,29184.0,29183.0,1.24872063]
[1609483677575,0.88568391,29184.0,29183.0,1.24872063]
[1609483678214,0.88568391,29184.0,29183.0,1.54871663]
[1609483679412,0.88568391,29184.0,29183.0,1.5624817]
[1609483679612,0.88568391,29184.0,29183.0,1.2624857]
[1609483679811,1.24855091,29184.0,29183.0,1.2624857]
[1609483681015,0.88568391,29184.0,29183.0,1.5624817]
[1609483682812,0.88568391,29184.0,29183.0,1.2624857]
[1609483683020,1.24855091,29184.0,29183.0,1.2624857]
[1609483683732,0.88568391,29184.0,29183.0,1.2624857]
[1609483684030,1.24855091,29184.0,29183.0,1.2624857]
[1609483685835,0.88568391,29184.0,29183.0,1.2624857]
[1609483686536,0.88568391,29184.0,29183.0,0.2624857]
[1609483687537,1.24855091,29184.0,29183.0,0.2624857]
[1609483688440,0.88568391,29184.0,29183.0,0.2624857]
[1609483688636,1.24855091,29184.0,29183.0,0.2624857]
[1609483689036,1.09068391,29184.0,29183.0,0.2624857]
[1609483689264,0.88568391,29184.0,29183.0,0.5624817]
[1609483689465,0.83236396,29184.0,29183.0,0.5624817]
[1609483689667,0.83236396,29184.0,29183.0,0.6024817]
[1609483690064,0.66941835,29184.0,29183.0,0.6024817]
[1609483690702,0.53081696,29184.0,29183.0,1.6024817]
[1609483690907,0.53081696,29184.0,29183.0,1.60348]
[1609483691114,0.53081696,29184.0,29183.0,1.84348]
[1609483691406,0.00208543,29188.0,29185.0,0.49997]
[1609483691407,0.00417233,29188.0,29185.0,0.49997]
[1609483691610,0.0062585,29189.0,29186.0,0.61]
[1609483691611,0.01043081,29189.0,29186.0,0.61]
[1609483691809,0.01043081,29189.0,29188.0,1.26718046]
[1609483691810,0.00417231,29189.0,29188.0,1.26718046]
[1609483692104,0.00417231,29189.0,29188.0,1.84711346]
[1609483692904,0.00417231,29189.0,29188.0,1.88711346]
[1609483693906,0.01043072,29190.0,29188.0,1.58718046]
[1609483694110,0.01043072,29190.0,29189.0,2.614922]
[1609483694505,0.05499447,29192.0,29189.0,2.614922]
[1609483694711,0.1834405,29196.0,29189.0,1.614922]
[1609483694920,0.362867,29195.0,29193.0,0.30222224]
[1609483695318,0.362867,29195.0,29194.0,1.0]
[1609483699918,1.612867,29195.0,29194.0,1.0]
[1609483700120,1.937867,29195.0,29194.0,1.0]
[1609483701748,0.687867,29195.0,29194.0,1.0]
[1609483701948,0.362867,29195.0,29194.0,1.0]